fUSD/lending_fUSD_20260506
["ID","MTS","AMOUNT","RATE_DAILY","PERIOD"]
[421672870,1778037048000,-5940.1782,0.00039447,2]
[421672877,1778037048000,-250.0,0.00039479,61]
[421672875,1778037048000,-155.2658515,0.00039462,120]
[421672873,1778037048000,-300.0,0.00039458,120]
[421672879,1778037048000,-621.44,0.00039482,2]
[421672885,1778037048000,-150.0,0.00039527,120]
[421672882,1778037048000,-181.0,0.00039527,120]
[421672886,1778037048000,-150.0,0.00039579,2]
[421672868,1778037048000,-160.0,0.000394,71]
[421672876,1778037048000,-156.40820005,0.00039462,120]
[421672884,1778037048000,-181.0,0.00039527,120]
[421672902,1778037049000,-300.0,0.00038256,2]
[421672903,1778037049000,-1150.37878111,0.00039687,30]
[421672900,1778037049000,-157.0,0.00036264,30]
[421672904,1778037049000,-325.25010827,0.00039687,30]
[421672901,1778037049000,-300.0,0.00038256,2]
[421672905,1778037060000,157.0,0.0002,2]
[421672906,1778037060000,-2134.70295005,0.00021482,2]
[421672907,1778037060000,-3625.0,0.00022213,2]
[421672912,1778037060000,-163.97,0.00028725,2]
[421672916,1778037060000,-163.97,0.00028852,7]
[421672908,1778037060000,-3625.0,0.00025213,2]
[421672911,1778037060000,-163.97,0.00028693,30]
[421672910,1778037060000,-163.97,0.00028661,7]
[421672913,1778037060000,-163.97,0.00028756,7]
[421672914,1778037060000,-163.97,0.00028788,30]
[421672924,1778037060000,-163.97,0.00028947,7]
[421672925,1778037060000,-155.74,0.0003499,10]
[421672915,1778037060000,-163.97,0.0002882,2]
[421672918,1778037060000,-163.97,0.00028915,2]
[421672909,1778037060000,-3625.0,0.00028213,2]
[421672921,1778037060000,-3625.0,0.00034213,2]
[421672917,1778037060000,-163.97,0.00028883,30]
[421672923,1778037060000,-265.59999999,0.0003499,10]
[421672920,1778037060000,-34610.13216564,0.00033466,2]
[421672922,1778037060000,-4069.84730134,0.0003499,10]
[421672927,1778037060000,-5996.54246912,0.0003499,10]
[421672926,1778037060000,-1865.06022955,0.0003499,10]
[421672928,1778037060000,-590.0,0.00036986,30]
[421672929,1778037060000,-157.0,0.00037264,30]
[421672931,1778037060000,-79.04436041,0.00038256,2]
[421672930,1778037060000,-220.95563959,0.00038256,2]
[421672933,1778037060000,-260.37563959,0.00039687,30]
[421672935,1778037060000,-4740.89423256,0.00039687,30]
[421672934,1778037060000,-548.15193719,0.00039687,30]
[421672932,1778037060000,-300.0,0.00038256,2]
[421672919,1778037060000,-3625.0,0.00031213,2]
[421672936,1778037062000,-157.0,0.00021,2]
[421672937,1778037062000,-157.0,0.00022,2]
[421672938,1778037063000,-201.48224231,0.00013398,2]
[421672939,1778037065000,-157.0,0.00013398,2]
[421672941,1778037676000,-152.08,9.638e-05,2]
[421672943,1778038082000,320.32,0.00030137,120]
[421672944,1778038086000,5001.72190912,8e-05,2]
[421672948,1778038154000,-215.65882716,0.0001254,2]
[421672946,1778038154000,-949.2311738,0.000114,2]
[421672947,1778038154000,-250.0,0.00012125,2]
[421672963,1778038232000,-174.65116275,0.00011999,2]
[421672960,1778038232000,-187.69603829,0.00011999,2]
[421672959,1778038232000,-500.0,0.00011999,2]
[421672971,1778038232000,-550.23948953,0.00012,2]
[421672962,1778038232000,-8.33603829,0.00011999,2]
[421672964,1778038232000,-184.42547525,0.00011999,2]
[421672961,1778038232000,-312.30396171,0.00011999,2]
[421672965,1778038232000,-340.09253987,0.00011999,2]
[421672970,1778038232000,-208570.34448406,0.00012,2]
[421672967,1778038232000,-500.0,0.00011999,2]
[421672968,1778038232000,-500.0,0.00011999,2]
[421672966,1778038232000,-500.0,0.00011999,2]
[421672969,1778038232000,-89659.60799137,0.00012,2]
[421672972,1778038232000,-477.0558266,0.00011999,2]
[421673000,1778038238000,-500.0,0.00011999,2]
[421673001,1778038238000,-500.0,0.00011999,2]
[421673003,1778038238000,-500.0,0.00011999,2]
[421673006,1778038238000,-1189963.46026641,0.00012,2]
[421673007,1778038238000,-31648.11560149,0.0001244,2]
[421673005,1778038238000,-500.0,0.00011999,2]
[421673009,1778038238000,-31648.11560146,0.00012713,2]
[421672997,1778038238000,-251.24966055,0.00011999,2]
[421673010,1778038238000,-152.08,0.0001285,2]
[421673011,1778038238000,-250.0,0.0001293,2]
[421673012,1778038238000,-1200.0,0.00012999,2]
[421673014,1778038238000,-5010.2958563,0.00013,2]
[421673016,1778038238000,-141.51775769,0.00013398,2]
[421673015,1778038238000,-1825.77158263,0.00013,15]
[421673004,1778038238000,-500.0,0.00011999,2]
[421672996,1778038238000,-500.0,0.00011999,2]
[421672998,1778038238000,-500.0,0.00011999,2]
[421672995,1778038238000,-500.0,0.00011999,2]
[421673013,1778038238000,-5424.12738526,0.00013,2]
[421672983,1778038238000,-500.0,0.00011999,2]
[421672982,1778038238000,-22.9441734,0.00011999,2]
[421672990,1778038238000,-500.0,0.00011999,2]
[421672984,1778038238000,-500.0,0.00011999,2]
[421672986,1778038238000,-500.0,0.00011999,2]
[421672985,1778038238000,-500.0,0.00011999,2]
[421672987,1778038238000,-500.0,0.00011999,2]
[421672989,1778038238000,-500.0,0.00011999,2]
[421672988,1778038238000,-500.0,0.00011999,2]
[421672992,1778038238000,-500.0,0.00011999,2]
[421673002,1778038238000,-500.0,0.00011999,2]
[421672991,1778038238000,-500.0,0.00011999,2]
[421672993,1778038238000,-500.0,0.00011999,2]
[421672994,1778038238000,-500.0,0.00011999,2]
[421672999,1778038238000,-500.0,0.00011999,2]
[421673017,1778038238000,-166.67,0.00013699,2]
[421673008,1778038238000,-34.34117284,0.0001254,2]
[421673020,1778038238000,-300.0,0.00013794,2]
[421673037,1778038238000,-3678.0062,0.000149,2]
[421673053,1778038238000,-258.97,0.00014985,2]
[421673055,1778038238000,-150.0,0.00014988,2]
[421673040,1778038238000,-1417294.3009,0.000149,2]
[421673042,1778038238000,-564.96720411,0.000149,2]
[421673068,1778038238000,-3129.04007872,0.00015,2]
[421673061,1778038238000,-500.0,0.00014999,2]
[421673057,1778038238000,-59673.46223803,0.00014989,2]
[421673072,1778038238000,-2000.0,0.00015392,2]
[421673074,1778038238000,-1000.0,0.00015521,2]
[421673070,1778038238000,-492.6123927,0.00015238,2]
[421673059,1778038238000,-151.0,0.00014997,2]
[421673063,1778038238000,-150.0,0.00014999,2]
[421673065,1778038238000,-2509934.83664322,0.00015,2]
[421673019,1778038238000,-300.0,0.00013794,2]
[421673035,1778038238000,-1200.0,0.000149,5]
[421673048,1778038238000,-501.10461545,0.00014973,2]
[421673076,1778038238000,-3215.26496774,0.00015566,2]
[421673050,1778038238000,-500.0,0.00014973,2]
[421673033,1778038238000,-6919.61044324,0.00014825,2]
[421673021,1778038238000,-300.0,0.00013794,2]
[421673018,1778038238000,-300.0,0.00013794,2]
[421673028,1778038238000,-474.16047687,0.000148,2]
[421673026,1778038238000,-1680.0,0.00014299,2]
[421673027,1778038238000,-400.0,0.000147,5]
[421673025,1778038238000,-164.2448,0.0001425,2]
[421673023,1778038238000,-250.0,0.00014,2]
[421673024,1778038238000,-506.0086978,0.00014,2]
[421673030,1778038238000,-4383.85,0.000148,2]
[421673029,1778038238000,-150.99,0.000148,2]
[421673022,1778038238000,-300.0,0.00013794,2]
[421673031,1778038238000,-800.0,0.000148,5]
[421673044,1778038238000,-153.12137068,0.00014925,2]
[421673032,1778038238000,-3215.26496783,0.00014825,2]
[421673046,1778038238000,-160.86224571,0.00014973,2]
[421673163,1778038239000,-200.0,0.00018302,2]
[421673165,1778038239000,-218.53,0.00018342,2]
[421673161,1778038239000,-150.0,0.00018302,2]
[421673171,1778038239000,-150.0,0.0001837,2]
[421673153,1778038239000,-1000.0,0.00018123,2]
[421673155,1778038239000,-200.0,0.00018262,2]
[421673159,1778038239000,-500.0,0.00018279,2]
[421673144,1778038239000,-156.30737109,0.00018048,2]
[421673151,1778038239000,-1000.0,0.00018123,2]
[421673149,1778038239000,-1000.0,0.00018123,2]
[421673142,1778038239000,-110617.00103074,0.00018,2]
[421673157,1778038239000,-151.18,0.00018268,2]
[421673173,1778038239000,-150.0,0.0001837,2]
[421673184,1778038239000,-150.0,0.0001837,2]
[421673167,1778038239000,-150.0,0.0001837,2]
[421673178,1778038239000,-150.0,0.0001837,2]
[421673175,1778038239000,-150.23954053,0.0001837,2]
[421673169,1778038239000,-150.83883825,0.0001837,2]
[421673182,1778038239000,-150.87735315,0.0001837,2]
[421673186,1778038239000,-150.0,0.0001837,2]
[421673196,1778038239000,-3215.26496774,0.00018529,2]
[421673198,1778038239000,-736.0,0.00018615,2]
[421673204,1778038239000,-1500.0,0.00018671,2]
[421673202,1778038239000,-501.54617284,0.00018671,2]
[421673200,1778038239000,-547.72727029,0.00018633,2]
[421673140,1778038239000,-500.0,0.00017937,2]
[421673180,1778038239000,-151.74680912,0.0001837,2]
[421673138,1778038239000,-3772.22319857,0.00017887,2]
[421673092,1778038239000,-255.0,0.00016112,2]
[421673134,1778038239000,-3215.26496774,0.00017789,2]
[421673206,1778038239000,-1500.0,0.00018671,2]
[421673078,1778038239000,-2351.0,0.00015729,2]
[421673080,1778038239000,-1600.0,0.000159,5]
[421673082,1778038239000,-377.29903517,0.0001596,2]
[421673084,1778038239000,-300.0,0.00016,2]
[421673098,1778038239000,-9999.99,0.00016438,2]
[421673096,1778038239000,-154.97,0.00016437,4]
[421673101,1778038239000,-499.99,0.00016438,2]
[421673094,1778038239000,-3215.26496774,0.00016307,2]
[421673088,1778038239000,-625.44779585,0.00016068,2]
[421673086,1778038239000,-152.08,0.00016063,2]
[421673090,1778038239000,-474.47361691,0.0001611,15]
[421673105,1778038239000,-844.7,0.00016438,2]
[421673103,1778038239000,-6501.51,0.00016438,2]
[421673107,1778038239000,-199.38,0.00016712,2]
[421673109,1778038239000,-160.0,0.0001685,2]
[421673111,1778038239000,-207.86895535,0.0001685,2]
[421673113,1778038239000,-162.55277151,0.0001685,2]
[421673123,1778038239000,-433.0,0.00017326,2]
[421673115,1778038239000,-93850.89411098,0.00017,2]
[421673117,1778038239000,-3215.26496774,0.00017048,2]
[421673121,1778038239000,-2000.0,0.00017317,2]
[421673119,1778038239000,-3292.0,0.00017302,2]
[421673129,1778038239000,-500.0,0.00017575,2]
[421673126,1778038239000,-500.0,0.00017575,2]
[421673127,1778038239000,-492.59344334,0.00017575,2]
[421673132,1778038239000,-500.0,0.00017575,2]
[421673147,1778038239000,-1937.89,0.00018082,2]
[421673190,1778038239000,-844.7,0.0001841,2]
[421673286,1778038239000,-1000.0,0.00019405,2]
[421673208,1778038239000,-150.0,0.00018778,2]
[421673280,1778038239000,-150.0,0.0001939,4]
[421673266,1778038239000,-547.72727029,0.00019071,2]
[421673273,1778038239000,-2000.0,0.00019241,2]
[421673276,1778038239000,-547.72727029,0.00019255,2]
[421673282,1778038239000,-156.90090257,0.00019398,2]
[421673278,1778038239000,-152.08,0.00019275,2]
[421673272,1778038239000,-2000.0,0.00019219,2]
[421673317,1778038239000,-7067.96587589,0.0002,2]
[421673284,1778038239000,-1000.0,0.00019405,2]
[421673291,1778038239000,-1118.86,0.00019693,2]
[421673300,1778038239000,-202594.35939952,0.0001995,15]
[421673289,1778038239000,-150.0,0.00019595,4]
[421673269,1778038239000,-2000.0,0.00019219,2]
[421673293,1778038239000,-2500.0,0.00019767,2]
[421673302,1778038239000,-1500.0,0.00019953,2]
[421673297,1778038239000,-2000.0,0.000199,7]
[421673307,1778038239000,-366.0,0.0002,2]
[421673304,1778038239000,-166.32,0.00019986,2]
[421673309,1778038239000,-211.0,0.0002,2]
[421673311,1778038239000,-154.0,0.0002,2]
[421673314,1778038239000,-204.0,0.0002,2]
[421673313,1778038239000,-158.0,0.0002,2]
[421673319,1778038239000,-8052.0,0.0002,2]
[421673315,1778038239000,-612.0,0.0002,2]
[421673318,1778038239000,-483.0,0.0002,2]
[421673316,1778038239000,-194.0,0.0002,2]
[421673295,1778038239000,-2500.0,0.00019767,2]
[421673268,1778038239000,-150.0,0.00019186,4]
[421673188,1778038239000,-150.0,0.0001837,2]
[421673262,1778038239000,-547.72727029,0.00018997,2]
[421673264,1778038239000,-3861.0,0.00019032,2]
[421673192,1778038239000,-166.32,0.00018463,2]
[421673210,1778038239000,-34400.75979359,0.000188,2]
[421673212,1778038239000,-500.0,0.00018857,2]
[421673223,1778038239000,-151.0,0.00018975,2]
[421673217,1778038239000,-500.0,0.00018857,2]
[421673229,1778038239000,-151.0,0.00018975,2]
[421673225,1778038239000,-151.0,0.00018975,2]
[421673219,1778038239000,-500.0,0.00018857,2]
[421673231,1778038239000,-151.0,0.00018975,2]
[421673227,1778038239000,-151.0,0.00018975,2]
[421673214,1778038239000,-500.0,0.00018857,2]
[421673233,1778038239000,-151.0,0.00018975,2]
[421673194,1778038239000,-6919.61044324,0.00018521,2]
[421673221,1778038239000,-151.0,0.00018975,2]
[421673258,1778038239000,-151.0,0.00018975,2]
[421673260,1778038239000,-151.0,0.00018975,2]
[421673246,1778038239000,-151.0,0.00018975,2]
[421673244,1778038239000,-151.0,0.00018975,2]
[421673242,1778038239000,-151.0,0.00018975,2]
[421673237,1778038239000,-151.0,0.00018975,2]
[421673250,1778038239000,-151.0,0.00018975,2]
[421673254,1778038239000,-151.0,0.00018975,2]
[421673252,1778038239000,-151.0,0.00018975,2]
[421673256,1778038239000,-151.0,0.00018975,2]
[421673248,1778038239000,-151.0,0.00018975,2]
[421673240,1778038239000,-151.0,0.00018975,2]
[421673235,1778038239000,-151.0,0.00018975,2]
[421673392,1778038240000,-500.0,0.00020413,2]
[421673381,1778038240000,-541.61,0.00020413,2]
[421673386,1778038240000,-603.36,0.00020413,2]
[421673379,1778038240000,-500.0,0.00020413,2]
[421673366,1778038240000,-150.00000001,0.00020411,4]
[421673383,1778038240000,-500.0,0.00020413,2]
[421673390,1778038240000,-500.0,0.00020413,2]
[421673388,1778038240000,-500.0,0.00020413,2]
[421673377,1778038240000,-500.0,0.00020413,2]
[421673394,1778038240000,-500.0,0.00020413,2]
[421673375,1778038240000,-359.02419726,0.00020413,2]
[421673411,1778038240000,-1006.15979396,0.00020501,2]
[421673408,1778038240000,-156.90090257,0.00020495,2]
[421673421,1778038240000,-500.0,0.0002094,2]
[421673415,1778038240000,-1118.86,0.00020678,2]
[421673398,1778038240000,-500.0,0.00020413,2]
[421673418,1778038240000,-22926.97907708,0.000207,2]
[421673402,1778038240000,-500.0,0.00020413,2]
[421673405,1778038240000,-500.0,0.00020413,2]
[421673426,1778038240000,-1221.0,0.0002094,2]
[421673428,1778038240000,-1352.0,0.0002094,2]
[421673424,1778038240000,-1268.0,0.0002094,2]
[421673430,1778038240000,-925.0,0.0002094,2]
[421673373,1778038240000,-151.0,0.00020411,2]
[421673400,1778038240000,-500.0,0.00020413,2]
[421673371,1778038240000,-291.88528156,0.00020411,4]
[421673344,1778038240000,-2500.0,0.00020314,2]
[421673354,1778038240000,-168.24308027,0.00020373,2]
[421673324,1778038240000,-150.0,0.00020003,4]
[421673321,1778038240000,-1125.0,0.0002,2]
[421673322,1778038240000,-175.0,0.0002,2]
[421673320,1778038240000,-1000.0,0.0002,7]
[421673323,1778038240000,-1000.0,0.00020001,2]
[421673327,1778038240000,-1252.0,0.00020009,2]
[421673329,1778038240000,-151.18,0.00020095,2]
[421673325,1778038240000,-158.73,0.00020006,2]
[421673336,1778038240000,-153.12137068,0.00020312,2]
[421673331,1778038240000,-1118.86,0.00020186,2]
[421673334,1778038240000,-4163.4849,0.00020214,2]
[421673368,1778038240000,-157.47218583,0.00020411,4]
[421673338,1778038240000,-27810.3742,0.00020314,2]
[421673342,1778038240000,-5000.0,0.00020314,2]
[421673340,1778038240000,-5056.8198,0.00020314,2]
[421673346,1778038240000,-1503.70297435,0.00020315,2]
[421673348,1778038240000,-359.48712633,0.00020315,2]
[421673350,1778038240000,-854.66775497,0.00020337,2]
[421673360,1778038240000,-844.7,0.00020381,2]
[421673364,1778038240000,-150.0,0.00020411,4]
[421673355,1778038240000,-4068.93414645,0.00020373,2]
[421673352,1778038240000,-412.81337616,0.00020373,2]
[421673362,1778038240000,-162.83760621,0.00020411,4]
[421673358,1778038240000,-227.29539059,0.00020373,3]
[421673440,1778038240000,-204.0,0.00021,2]
[421673442,1778038240000,-612.0,0.00021,2]
[421673396,1778038240000,-500.0,0.00020413,2]
[421673447,1778038240000,-483.0,0.00021,2]
[421673510,1778038240000,-612.0,0.00022,2]
[421673514,1778038240000,-483.0,0.00022,2]
[421673504,1778038240000,-211.0,0.00022,2]
[421673502,1778038240000,-366.0,0.00022,2]
[421673506,1778038240000,-158.0,0.00022,2]
[421673513,1778038240000,-194.0,0.00022,2]
[421673517,1778038240000,-175.0,0.00022,2]
[421673519,1778038240000,-2000.0,0.00022202,2]
[421673521,1778038240000,-6919.61044324,0.00022218,2]
[421673533,1778038240000,-2900.0,0.000225,15]
[421673523,1778038240000,-501.05677539,0.00022306,2]
[421673537,1778038240000,-156.90090257,0.00022691,2]
[421673527,1778038240000,-170.86185645,0.00022407,2]
[421673529,1778038240000,-170.86185642,0.00022407,2]
[421673525,1778038240000,-844.7,0.00022353,2]
[421673535,1778038240000,-35948.84403507,0.000225,2]
[421673531,1778038240000,-170.86185642,0.00022407,2]
[421673542,1778038240000,-366.0,0.00023,2]
[421673544,1778038240000,-211.0,0.00023,2]
[421673546,1778038240000,-158.0,0.00023,2]
[421673550,1778038240000,-612.0,0.00023,2]
[421673548,1778038240000,-204.0,0.00023,2]
[421673555,1778038240000,-483.0,0.00023,2]
[421673553,1778038240000,-194.0,0.00023,2]
[421673434,1778038240000,-211.0,0.00021,2]
[421673500,1778038240000,-500.0,0.00021992,2]
[421673508,1778038240000,-204.0,0.00022,2]
[421673540,1778038240000,-159.0,0.00023,2]
[421673496,1778038240000,-5000.0,0.00021918,2]
[421673444,1778038240000,-194.0,0.00021,2]
[421673498,1778038240000,-151.18,0.00021922,2]
[421673432,1778038240000,-366.0,0.00021,2]
[421673438,1778038240000,-158.0,0.00021,2]
[421673436,1778038240000,-168.0,0.00021,2]
[421673449,1778038240000,-175.0,0.00021,2]
[421673451,1778038240000,-2000.0,0.00021165,2]
[421673453,1778038240000,-1118.86,0.0002117,2]
[421673468,1778038240000,-1646.0,0.00021523,2]
[421673457,1778038240000,-750.0,0.000214,2]
[421673465,1778038240000,-166.32,0.0002151,2]
[421673461,1778038240000,-5737.5994,0.00021484,2]
[421673463,1778038240000,-58241.82039864,0.000215,2]
[421673455,1778038240000,-169.31,0.00021203,2]
[421673488,1778038240000,-400.0,0.000219,7]
[421673469,1778038240000,-151.0,0.00021581,2]
[421673472,1778038240000,-500.0,0.00021583,2]
[421673474,1778038240000,-500.0,0.00021583,2]
[421673459,1778038240000,-300.0,0.000214,7]
[421673478,1778038240000,-500.0,0.00021583,2]
[421673476,1778038240000,-500.0,0.00021583,2]
[421673480,1778038240000,-500.0,0.00021583,2]
[421673482,1778038240000,-1391105.0436,0.00021584,2]
[421673484,1778038240000,-156.90090257,0.00021593,2]
[421673486,1778038240000,-1118.86,0.00021663,2]
[421673643,1778038241000,-199.0,0.00025,2]
[421673629,1778038241000,-1000.0,0.00024658,2]
[421673641,1778038241000,-628.0,0.00025,2]
[421673626,1778038241000,-178.48,0.00024658,2]
[421673624,1778038241000,-500.0,0.00024657,2]
[421673620,1778038241000,-500.0,0.00024657,2]
[421673637,1778038241000,-170.0,0.00025,2]
[421673635,1778038241000,-214.0,0.00025,2]
[421673633,1778038241000,-375.0,0.00025,2]
[421673622,1778038241000,-500.0,0.00024657,2]
[421673631,1778038241000,-156.90090257,0.00024886,2]
[421673639,1778038241000,-216.0,0.00025,2]
[421673645,1778038241000,-209.86649147,0.00025,2]
[421673682,1778038241000,-150.98112046,0.000256,39]
[421673649,1778038241000,-2000.0,0.00025,2]
[421673657,1778038241000,-179.37258832,0.00025,2]
[421673647,1778038241000,-501.5843824,0.00025,2]
[421673655,1778038241000,-3078.04110754,0.00025,2]
[421673651,1778038241000,-540.0,0.00025,2]
[421673666,1778038241000,-158.0,0.000251,2]
[421673660,1778038241000,-500.0,0.00025065,2]
[421673668,1778038241000,-158.0,0.000251,2]
[421673664,1778038241000,-158.0,0.000251,2]
[421673662,1778038241000,-167.0,0.000251,2]
[421673684,1778038241000,-352.02,0.00025786,2]
[421673605,1778038241000,-2673.23,0.00024174,2]
[421673653,1778038241000,-617.75203949,0.00025,2]
[421673607,1778038241000,-26073.07,0.00024174,2]
[421673561,1778038241000,-2000.0,0.00023089,2]
[421673615,1778038241000,-500.0,0.00024335,2]
[421673686,1778038241000,-2673.23,0.00025786,2]
[421673559,1778038241000,-260.51699927,0.00023063,2]
[421673557,1778038241000,-175.0,0.00023,2]
[421673563,1778038241000,-401.18521548,0.000235,2]
[421673566,1778038241000,-151.18,0.00023749,2]
[421673568,1778038241000,-156.90090257,0.00023788,2]
[421673570,1778038241000,-25142.47854187,0.000238,2]
[421673574,1778038241000,-1221.0,0.0002394,2]
[421673589,1778038241000,-340.695354,0.00024,10]
[421673580,1778038241000,-366.0,0.00024,2]
[421673572,1778038241000,-1268.0,0.0002394,2]
[421673576,1778038241000,-1352.0,0.0002394,2]
[421673584,1778038241000,-158.0,0.00024,2]
[421673578,1778038241000,-925.0,0.0002394,2]
[421673593,1778038241000,-483.0,0.00024,2]
[421673586,1778038241000,-204.0,0.00024,2]
[421673591,1778038241000,-194.0,0.00024,2]
[421673588,1778038241000,-612.0,0.00024,2]
[421673582,1778038241000,-211.0,0.00024,2]
[421673595,1778038241000,-3600.0,0.00024,2]
[421673599,1778038241000,-175.0,0.00024,2]
[421673597,1778038241000,-1252.07895434,0.00024,2]
[421673603,1778038241000,-352.02,0.00024174,2]
[421673601,1778038241000,-854.66775497,0.00024019,2]
[421673609,1778038241000,-549.23,0.00024174,2]
[421673611,1778038241000,-3932.42,0.00024174,2]
[421673613,1778038241000,-844.7,0.00024324,2]
[421673617,1778038241000,-500.0,0.0002463,2]
[421673688,1778038241000,-26073.07,0.00025786,2]
[421673768,1778038241000,-31544.85,0.00027397,10]
[421673675,1778038241000,-159.49864063,0.00025342,2]
[421673756,1778038241000,-1500.0,0.00027397,2]
[421673764,1778038241000,-328.357965,0.00027397,2]
[421673760,1778038241000,-328.357965,0.00027397,2]
[421673762,1778038241000,-328.357965,0.00027397,2]
[421673752,1778038241000,-599.837577,0.00027397,2]
[421673750,1778038241000,-599.837577,0.00027397,2]
[421673754,1778038241000,-230.88441929,0.00027397,2]
[421673758,1778038241000,-178.48,0.00027397,2]
[421673766,1778038241000,-328.357965,0.00027397,2]
[421673770,1778038241000,-26287.38,0.00027397,10]
[421673774,1778038241000,-429.54,0.000274,7]
[421673776,1778038241000,-500.0,0.000274,7]
[421673782,1778038241000,-7440.0,0.00027463,7]
[421673772,1778038241000,-500.0,0.00027399,2]
[421673780,1778038241000,-151.18,0.00027402,2]
[421673786,1778038241000,-150.0,0.00027691,2]
[421673778,1778038241000,-70374.77,0.000274,7]
[421673788,1778038241000,-854.66775497,0.000277,2]
[421673784,1778038241000,-150.0,0.000275,14]
[421673792,1778038241000,-162.55277151,0.00028,7]
[421673790,1778038241000,-1062.61,0.0002786,2]
[421673794,1778038241000,-508.6,0.00028,2]
[421673796,1778038241000,-508.6,0.00028,2]
[421673672,1778038241000,-3102.0,0.000251,2]
[421673804,1778038241000,-508.6,0.00028,2]
[421673800,1778038241000,-508.6,0.00028,2]
[421673802,1778038241000,-508.6,0.00028,2]
[421673746,1778038241000,-599.837577,0.00027397,2]
[421673748,1778038241000,-599.837577,0.00027397,2]
[421673798,1778038241000,-508.6,0.00028,2]
[421673740,1778038241000,-904.544289,0.00027397,2]
[421673744,1778038241000,-904.544289,0.00027397,2]
[421673692,1778038241000,-3932.42,0.00025786,2]
[421673678,1778038241000,-500.0,0.00025369,2]
[421673680,1778038241000,-151.18,0.00025576,2]
[421673694,1778038241000,-501.52296871,0.00025816,2]
[421673696,1778038241000,-31157.8661112,0.0002589,5]
[421673698,1778038241000,-6919.61044324,0.00025914,2]
[421673701,1778038241000,-156.90090257,0.00025984,2]
[421673705,1778038241000,-1062.61,0.00026,2]
[421673707,1778038241000,-150.0,0.00026125,2]
[421673703,1778038241000,-4573.71407849,0.00026,2]
[421673709,1778038241000,-500.0,0.0002613,2]
[421673713,1778038241000,-564.96720411,0.0002653,2]
[421673711,1778038241000,-844.7,0.00026296,2]
[421673690,1778038241000,-549.23,0.00025786,2]
[421673717,1778038241000,-150.0,0.00026908,2]
[421673715,1778038241000,-1062.61,0.0002662,2]
[421673731,1778038241000,-153.98557922,0.00027123,20]
[421673738,1778038241000,-904.544289,0.00027397,2]
[421673725,1778038241000,-1352.0,0.0002694,2]
[421673723,1778038241000,-1221.0,0.0002694,2]
[421673730,1778038241000,-156.9009026,0.00027081,2]
[421673742,1778038241000,-904.544289,0.00027397,2]
[421673734,1778038241000,-1062.61,0.0002724,2]
[421673728,1778038241000,-925.0,0.0002694,2]
[421673721,1778038241000,-1268.0,0.0002694,2]
[421673719,1778038241000,-500.0,0.00026914,2]
[421673736,1778038241000,-200.0,0.00027364,2]
[421673853,1778038242000,-453.0,0.00028274,30]
[421673879,1778038242000,-453.0,0.00028274,30]
[421673851,1778038242000,-453.0,0.00028274,30]
[421673855,1778038242000,-453.0,0.00028274,30]
[421673856,1778038242000,-453.0,0.00028274,30]
[421673874,1778038242000,-453.0,0.00028274,30]
[421673872,1778038242000,-453.0,0.00028274,30]
[421673861,1778038242000,-453.0,0.00028274,30]